fUST/lending_fUST_20240411
["ID","MTS","AMOUNT","RATE_DAILY","PERIOD"]
[322113115,1712793045092,-500.0,0.00034794,5]
[322113116,1712793045101,-9157.57862626,0.000349,2]
[322113117,1712793045110,-155.08052,0.000349,2]
[322113118,1712793045120,-155.08052,0.000349,2]
[322113119,1712793045130,-151.0,0.000349,2]
[322113120,1712793045140,-14433.0,0.00035,2]
[322113121,1712793045150,-668.97750328,0.00035,4]
[322113122,1712793045160,-596.25390228,0.00035,2]
[322113123,1712793045170,-151.0,0.00035,2]
[322113124,1712793045184,-500.0,0.00035066,5]
[322113125,1712793045193,-565.53,0.00035066,5]
[322113126,1712793045203,-315.85,0.00035066,5]
[322113127,1712793045214,-1063.94,0.00035066,5]
[322113128,1712793045224,-500.0,0.00035066,5]
[322113129,1712793045234,-500.0,0.00035068,5]
[322113130,1712793045243,-500.0,0.00035068,5]
[322113131,1712793045253,-500.05,0.00035068,5]
[322113132,1712793045264,-236.93,0.00035068,5]
[322113133,1712793045276,-500.0,0.00035068,5]
[322113134,1712793045288,-500.0,0.00035068,5]
[322113136,1712793045298,-500.0,0.00035068,5]
[322113137,1712793045307,-1073.49,0.00035068,5]
[322113138,1712793045317,-743.38,0.00035068,5]
[322113139,1712793045327,-155.08052,0.00035068,2]
[322113140,1712793045337,-155.08052,0.00035068,2]
[322113141,1712793045347,-500.0,0.00035068,5]
[322113142,1712793045356,-500.0,0.00035068,5]
[322113143,1712793045365,-439.31587257,0.0003534,5]
[322113144,1712793045375,-1063.94,0.0003534,5]
[322113145,1712793045385,-500.0,0.0003534,5]
[322113146,1712793045396,-500.0,0.00035342,5]
[322113147,1712793045405,-500.0,0.00035342,5]
[322113148,1712793045414,-500.05,0.00035342,5]
[322113149,1712793045423,-562.33146172,0.00035342,5]
[322113150,1712793045432,-500.0,0.00035342,5]
[322113151,1712793045441,-500.0,0.00035342,5]
[322113152,1712793045451,-1073.49,0.00035342,5]
[322113153,1712793045460,-743.38,0.00035342,5]
[322113154,1712793045470,-500.0,0.00035342,5]
[322113155,1712793045481,-500.0,0.00035342,5]
[322113156,1712793045491,-2800.9876,0.0003538,48]
[322113157,1712793045502,-151.0,0.0003538,2]
[322113158,1712793045511,-560.0,0.00035386,2]
[322113160,1712793045520,-166.21354807,0.00035429,7]
[322113161,1712793045530,-153.21544722,0.0003548,7]
[322113162,1712793045541,-161.33673141,0.0003554,2]
[322113163,1712793045550,-3958.94209708,0.0003558,30]
[322113164,1712793045559,-354.82323027,0.00035599,7]
[322113165,1712793045569,-12784.93336623,0.000356,5]
[322113166,1712793045579,-2199.0124,0.000356,28]
[322113167,1712793045587,-93468.7222289,0.000356,2]
[322113168,1712793045597,-151.0,0.000356,2]
[322113169,1712793045606,-155.08052,0.000356,2]
[322113170,1712793045615,-155.08052,0.000356,2]
[322113171,1712793045624,-155.08052,0.000356,2]
[322113172,1712793045633,-155.08052,0.000356,2]
[322113173,1712793045643,-1063.94,0.00035614,5]
[322113174,1712793045652,-500.0,0.00035614,5]
[322113175,1712793045662,-500.0,0.00035616,5]
[322113176,1712793045671,-500.0,0.00035616,5]
[322113177,1712793045680,-500.05,0.00035616,5]
[322113178,1712793045690,-500.0,0.00035616,5]
[322113179,1712793045699,-500.0,0.00035616,5]
[322113180,1712793045708,-1073.49,0.00035616,5]
[322113181,1712793045718,-743.38,0.00035616,5]
[322113182,1712793045727,-500.0,0.00035616,5]
[322113183,1712793045736,-500.0,0.00035616,5]
[322113184,1712793045746,-1858.233668,0.00035616,120]
[322113185,1712793045755,-150.5,0.00035618,35]
[322113186,1712793045764,-708.0,0.00035627,35]
[322113187,1712793045774,-150.5,0.00035628,35]
[322113188,1712793045783,-708.0,0.00035637,35]
[322113189,1712793045792,-150.5,0.00035638,35]
[322113190,1712793045802,-155.08052,0.00035641,2]
[322113191,1712793045820,-155.08052,0.00035641,2]
[322113192,1712793045832,-155.08052,0.00035641,2]
[322113193,1712793045841,-155.08052,0.00035641,2]
[322113194,1712793045851,-155.08052,0.00035641,2]
[322113195,1712793045860,-155.08052,0.00035641,2]
[322113196,1712793045870,-155.08052,0.00035641,2]
[322113197,1712793045880,-155.08052,0.00035641,2]
[322113198,1712793045889,-155.08052,0.00035641,2]
[322113199,1712793045899,-155.08052,0.00035641,2]
[322113200,1712793045908,-155.08052,0.00035641,2]
[322113201,1712793045917,-155.080516,0.00035641,2]
[322113202,1712793045927,-140153.50321645,0.00035641,60]
[322113203,1712793045937,-2726.1599453,0.00035641,2]
[322113204,1712793045947,-24941.07647962,0.00035641,60]
[322113205,1712793045957,-1724838.34048478,0.00035641,60]
[322113206,1712793045967,-565.03910345,0.00035641,30]
[322113207,1712793045978,-18711.38804187,0.00035641,2]
[322113208,1712793045987,-87724.35344787,0.00035641,2]
[322113209,1712793045997,-349264.47664283,0.00035641,2]
[322113210,1712793046007,-300.0,0.00035641,2]
[322113211,1712793046016,-779.51221246,0.00035641,2]
[322113212,1712793046026,-1188.31537946,0.00035641,14]
[322113213,1712793046036,-223.9706067,0.00035641,10]
[322113214,1712793046046,-285.83597852,0.00035641,2]
[322113215,1712793046056,-18476.21384996,0.00035641,2]
[322113216,1712793046066,-4078.53280749,0.00035641,2]
[322113217,1712793046076,-314.78619839,0.00035641,2]
[322113218,1712793046087,-280.50083677,0.00035641,2]
[322113219,1712793046098,-9918.27611517,0.00035641,2]
[322113220,1712793046107,-2701.89178136,0.00035641,2]
[322113221,1712793046117,-70343.23826767,0.00035641,32]
[322113222,1712793046130,-151.65757168,0.00035641,2]
[322113223,1712793046140,-171.40073462,0.00035641,30]
[322113224,1712793046151,-166.88806818,0.00035641,5]
[322113225,1712793046161,-8245.04096598,0.00035641,31]
[322113226,1712793046173,-507.22913147,0.00035641,30]
[322113227,1712793046184,-27847.2962504,0.00035641,2]
[322113228,1712793046194,-201.60994149,0.00035641,2]
[322113229,1712793046203,-429.74113113,0.00035641,2]
[322113230,1712793046214,-28535.15134653,0.00035641,2]
[322113231,1712793046224,-285.53972554,0.00035641,30]
[322113232,1712793046233,-1001.27270019,0.00035641,2]
[322113233,1712793046243,-905.0,0.00035641,30]
[322113234,1712793046257,-905.0,0.00035641,30]
[322113235,1712793046268,-152.36387265,0.00035641,14]
[322113236,1712793046278,-152.36387265,0.00035641,14]
[322113237,1712793046288,-152.36387265,0.00035641,14]
[322113238,1712793046298,-152.36387264,0.00035641,14]
[322113239,1712793046309,-974.85073572,0.00035641,2]
[322113240,1712793046320,-708.0,0.00035647,35]
[322113241,1712793046330,-1000.0,0.00035647,2]
[322113242,1712793046341,-150.5,0.00035665,35]
[322113243,1712793046350,-154.95351395,0.00035683,2]
[322113244,1712793046361,-154.95351395,0.00035683,4]
[322113245,1712793046371,-548.90126628,0.00035684,4]
[322113246,1712793046382,-1572.67084828,0.00035684,4]
[322113247,1712793046394,-126237.68117905,0.00035684,30]
[322113248,1712793046404,-150.5,0.00035688,35]
[322113249,1712793046414,-153.41612329,0.00035691,7]
[322113250,1712793046425,-285.01972171,0.00035697,4]
[322113251,1712793046436,-151.15,0.00035786,35]
[322113252,1712793046445,-150.5,0.00035796,35]
[322113253,1712793046455,-3849.95420935,0.00035805,120]
[322113254,1712793046464,-2123.60841543,0.00035806,4]
[322113255,1712793046474,-905.0,0.00035806,5]
[322113256,1712793046483,-500.0,0.00035806,3]
[322113257,1712793046492,-1331.73525103,0.0003584,6]
[322113258,1712793046502,-200.0,0.00035872,120]
[322113259,1712793046511,-1063.94,0.00035888,5]
[322113260,1712793046521,-463.66,0.00035888,5]
[322113261,1712793046532,-343.66730253,0.0003589,5]
[322113262,1712793046542,-500.0,0.0003589,5]
[322113263,1712793046552,-500.05,0.0003589,5]
[322113264,1712793046561,-500.0,0.0003589,5]
[322113265,1712793046572,-500.0,0.0003589,5]
[322113266,1712793046582,-1073.49,0.0003589,5]
[322113267,1712793046593,-743.38,0.0003589,5]
[322113268,1712793046603,-530.21842292,0.0003589,5]
[322113269,1712793046613,-500.0,0.0003589,5]
[322113270,1712793046624,-1000.0,0.00035987,2]
[322113271,1712793046634,-25521.5705276,0.00036,14]
[322113272,1712793046644,-150.81901718,0.00036124,2]
[322113273,1712793046654,-250.19065122,0.00036124,2]
[322113274,1712793046664,-158.47263869,0.00036162,4]
[322113275,1712793046674,-1063.94,0.00036162,5]
[322113276,1712793046685,-500.0,0.00036164,5]
[322113277,1712793046696,-500.05,0.00036164,5]
[322113278,1712793046706,-500.0,0.00036164,5]
[322113279,1712793046718,-500.0,0.00036164,5]
[322113280,1712793046728,-1073.49,0.00036164,5]
[322113281,1712793046739,-743.38,0.00036164,5]
[322113282,1712793046749,-500.0,0.00036164,5]
[322113283,1712793046760,-160.0,0.00036209,3]
[322113284,1712793046770,-255.63151003,0.0003624,2]
[322113285,1712793046780,-200.0,0.00036274,120]
[322113286,1712793046790,-1063.94,0.00036436,5]
[322113287,1712793046801,-370.53721029,0.00036438,5]
[322113288,1712793046810,-500.05,0.00036438,5]
[322113289,1712793046819,-500.0,0.00036438,5]
[322113290,1712793046829,-500.0,0.00036438,5]
[322113291,1712793046839,-1073.49,0.00036438,5]
[322113292,1712793046849,-743.38,0.00036438,5]
[322113293,1712793046860,-500.0,0.00036438,5]
[322113294,1712793046870,-160.0,0.00036469,4]
[322113295,1712793046880,-200.0,0.00036517,120]
[322113296,1712793046890,-200.0,0.00036598,120]
[322113297,1712793046901,-1063.94,0.0003671,5]
[322113298,1712793046911,-500.05,0.00036712,5]
[322113299,1712793046922,-500.0,0.00036712,5]
[322113300,1712793046931,-500.0,0.00036712,5]
[322113301,1712793046941,-1073.49,0.00036712,5]
[322113302,1712793046951,-743.38,0.00036712,5]
[322113303,1712793046961,-500.0,0.00036712,5]
[322113304,1712793046970,-160.0,0.0003673,5]
[322113305,1712793046980,-301.63803436,0.00036731,4]
[322113306,1712793046990,-319.83345775,0.000369,30]
[322113307,1712793047000,-1063.94,0.00036984,5]
[322113308,1712793047010,-500.05,0.00036986,5]
[322113309,1712793047019,-500.0,0.00036986,5]
[322113310,1712793047029,-500.0,0.00036986,5]
[322113311,1712793047039,-1073.49,0.00036986,5]
[322113312,1712793047049,-743.38,0.00036986,5]
[322113313,1712793047060,-500.0,0.00036986,5]
[322113314,1712793047070,-160.0,0.0003699,6]
[322113315,1712793047080,-2114.07894178,0.00037,2]
[322113316,1712793047090,-5003.03752554,0.00037,2]
[322113317,1712793047101,-153.0,0.00037084,2]
[322113318,1712793047111,-200.0,0.00037221,120]
[322113319,1712793047120,-160.0,0.00037251,7]
[322113320,1712793047133,-1063.94,0.00037258,5]
[322113321,1712793047144,-500.05,0.0003726,5]
[322113322,1712793047153,-500.0,0.0003726,5]
[322113323,1712793047162,-500.0,0.0003726,5]
[322113324,1712793047173,-1073.49,0.0003726,5]
[322113325,1712793047184,-743.38,0.0003726,5]
[322113326,1712793047195,-500.0,0.0003726,5]
[322113327,1712793047205,-603.27606872,0.00037349,7]
[322113328,1712793047216,-160.0,0.00037511,8]
[322113329,1712793047226,-1063.94,0.00037532,5]
[322113330,1712793047236,-500.05,0.00037534,5]
[322113331,1712793047247,-500.0,0.00037534,5]
[322113332,1712793047257,-500.0,0.00037534,5]
[322113333,1712793047267,-1073.49,0.00037534,5]
[322113334,1712793047277,-743.38,0.00037534,5]
[322113335,1712793047286,-500.0,0.00037534,5]
[322113336,1712793047296,-153.21544722,0.00037541,7]
[322113337,1712793047305,-200.0,0.00037569,120]
[322113338,1712793047314,-905.0,0.00037596,5]
[322113339,1712793047324,-200.0,0.00037656,120]
[322113340,1712793047439,-1244.51526372,0.0003776,6]
[322113341,1712793047449,-160.0,0.00037772,9]
[322113342,1712793047459,-2000.0,0.000378,3]
[322113343,1712793047468,-2006.0,0.000378,3]
[322113344,1712793047478,-1063.94,0.00037806,5]
[322113345,1712793047487,-500.05,0.00037808,5]
[322113346,1712793047497,-500.0,0.00037808,5]
[322113347,1712793047506,-500.0,0.00037808,5]
[322113348,1712793047517,-1073.49,0.00037808,5]
[322113349,1712793047526,-743.38,0.00037808,5]
[322113350,1712793047536,-500.0,0.00037808,5]
[322113351,1712793047546,-166.79376748,0.00037976,4]
[322113352,1712793047557,-400159.88803757,0.00038,30]
[322113353,1712793047567,-1756.58797177,0.00038,2]
[322113354,1712793047577,-1000.0,0.00038,2]
[322113355,1712793047588,-2664.03207585,0.00038,7]
[322113356,1712793047598,-17649.89020339,0.00038,7]
[322113357,1712793047609,-799.73017001,0.00038,7]
[322113358,1712793047618,-160.0,0.00038032,10]
[322113359,1712793047628,-1063.94,0.0003808,5]
[322113360,1712793047637,-500.05,0.00038082,5]
[322113361,1712793047647,-500.0,0.00038082,5]
[322113362,1712793047657,-500.0,0.00038082,5]
[322113363,1712793047669,-1073.49,0.00038082,5]
[322113364,1712793047678,-743.38,0.00038082,5]
[322113365,1712793047689,-500.0,0.00038082,5]
[322113366,1712793047699,-200.0,0.00038088,120]
[322113367,1712793047710,-153.21544722,0.0003809,7]
[322113368,1712793047721,-200.0,0.00038147,120]
[322113369,1712793047731,-155.63503248,0.00038255,7]
[322113370,1712793047741,-160.0,0.00038293,11]
[322113371,1712793047751,-1206.55213744,0.00038294,30]
[322113372,1712793047760,-1063.94,0.00038353,5]
[322113373,1712793047771,-500.05,0.00038356,5]
[322113374,1712793047780,-500.0,0.00038356,5]
[322113375,1712793047790,-500.0,0.00038356,5]
[322113376,1712793047799,-1073.49,0.00038356,5]
[322113377,1712793047809,-743.38,0.00038356,5]
[322113378,1712793047819,-500.0,0.00038356,5]
[322113379,1712793047829,-27481.0740379,0.00038356,2]
[322113380,1712793047839,-160.0,0.00038553,12]
[322113381,1712793047849,-250746.88934069,0.000386,21]
[322113382,1712793047860,-1063.94,0.00038627,5]
[322113383,1712793047870,-500.05,0.0003863,5]
[322113384,1712793047879,-215.36137339,0.0003863,5]
[322113385,1712793047890,-531.99,0.0003863,5]
[322113386,1712793047899,-1073.49,0.0003863,5]
[322113387,1712793047910,-743.38,0.0003863,5]
[322113388,1712793047919,-649.38209265,0.0003863,5]
[322113389,1712793047936,-153.0,0.00038713,2]
[322113390,1712793047966,-153.0,0.00038713,2]
[322113391,1712793048003,-306.0,0.00038713,2]
[322113392,1712793048041,-153.0,0.00038713,2]
[322113393,1712793048080,-153.0,0.00038713,2]
[322113394,1712793048093,-153.0,0.00038713,2]
[322113395,1712793048103,-153.0,0.00038713,2]
[322113396,1712793048111,-153.0,0.00038713,2]
[322113397,1712793048122,-153.0,0.00038713,2]
[322113398,1712793048136,-153.0,0.00038713,2]
[322113399,1712793048146,-153.0,0.00038713,2]
[322113400,1712793048156,-160.0,0.00038814,13]
[322113401,1712793048176,-3000.04998948,0.000389,2]
[322113402,1712793048186,-1063.94,0.00038901,5]
[322113403,1712793048195,-500.05,0.00038904,5]
[322113404,1712793048206,-1073.49,0.00038904,5]
[322113405,1712793048216,-743.38,0.00038904,5]
[322113406,1712793048227,-783.0,0.00038925,3]
[322113407,1712793048238,-158.917264,0.00038933,2]
[322113408,1712793048249,-306.168667,0.00038933,2]
[322113409,1712793048260,-325.971851,0.00038933,2]
[322113410,1712793048270,-193.58453683,0.00038962,4]
[322113411,1712793048280,-74384.34581816,0.00038999,5]
[322113412,1712793048291,-12087.37480058,0.00039,2]
[322113413,1712793048303,-7743.0,0.00039,30]
[322113414,1712793048314,-2663.0,0.00039,7]
[322113415,1712793048325,-17648.0,0.00039,7]
[322113416,1712793048334,-798.0,0.00039,7]
[322113417,1712793048344,-160.0,0.00039074,14]
[322113418,1712793048353,-1063.94,0.00039175,5]
[322113419,1712793048363,-500.18208622,0.00039178,5]
[322113420,1712793048373,-1073.52551656,0.00039178,5]
[322113421,1712793048383,-743.46135061,0.00039178,5]
[322113422,1712793048393,-207.37639592,0.00039209,4]
[322113423,1712793048404,-179.79610457,0.00039209,4]
[322113424,1712793048414,-160.0,0.00039335,15]
[322113425,1712793048423,-1063.94,0.00039449,5]
[322113426,1712793048432,-153.0,0.00039535,2]
[322113427,1712793048442,-153.0,0.00039535,2]
[322113428,1712793048451,-153.0,0.00039535,2]
[322113429,1712793048460,-153.0,0.00039535,2]
[322113430,1712793048471,-203.66164366,0.0003958,4]
[322113431,1712793048479,-200.0,0.0003958,4]
[322113432,1712793048489,-160.0,0.00039595,16]
[322113433,1712793048498,-156.48191588,0.00039636,4]
[322113434,1712793048508,-158.36414565,0.00039682,30]
[322113435,1712793048517,-1063.94,0.00039723,5]
[322113436,1712793048527,-160.0,0.00039856,17]
[322113437,1712793048536,-200.0,0.00039867,120]
[322113439,1712793048546,-1063.94,0.00039997,5]
[322113440,1712793048556,-7456.4682108,0.0004,2]
[322113441,1712793048565,-397.76918839,0.0004,120]
[322113442,1712793048574,-4988.0,0.0004,2]
[322113443,1712793048584,-4792.91388471,0.0004,2]
[322113444,1712793048593,-1114.6284128,0.0004,7]
[322113445,1712793048603,-695608.58290477,0.0004,15]
[322113446,1712793048613,-2052.84328525,0.0004,120]
[322113447,1712793048623,-171282.09627248,0.0004,15]
[322113448,1712793048633,-155.47759416,0.0004,2]
[322113449,1712793048642,-98649.057606,0.0004,15]
[322113450,1712793048651,-30000.0,0.0004,2]
[322113451,1712793048661,-14704.6836859,0.0004,30]
[322113452,1712793048670,-1881.50121978,0.0004,2]
[322113453,1712793048680,-358.94350291,0.0004,2]
[322113454,1712793048690,-5148.39557344,0.0004,5]
[322113455,1712793048699,-3033.73978109,0.0004,15]
[322113456,1712793048709,-2647.83073758,0.0004,120]
[322113457,1712793048718,-259.18,0.0004011,35]
[322113458,1712793048728,-160.0,0.00040116,18]
[322113459,1712793048737,-146770.0,0.0004013,2]
[322113460,1712793048746,-1063.94,0.00040271,5]
[322113461,1712793048756,-160.0,0.00040377,19]
[322113462,1712793048765,-1063.94,0.00040545,5]
[322113463,1712793048775,-160.0,0.00040637,20]
[322113464,1712793048785,-1064.01807752,0.00040819,5]
[322113465,1712793048794,-160.0,0.00040897,21]
[322113466,1712793048803,-188.42627071,0.00041,2]
[322113467,1712793048813,-1060.71891924,0.00041,4]
[322113468,1712793048822,-2000.0,0.00041,30]
[322113469,1712793048831,-2000.0,0.0004101,30]
[322113470,1712793048841,-2000.0,0.0004102,30]
[322113471,1712793048850,-2016.775282,0.0004103,30]
[322113472,1712793048859,-177.5768568,0.00041096,2]
[322113473,1712793048868,-1232.5830177,0.00041096,7]
[322113474,1712793048878,-500.0,0.00041096,7]
[322113475,1712793048887,-500.0,0.00041096,7]
[322113476,1712793048896,-500.0,0.00041096,7]
[322113477,1712793048905,-465.64638475,0.00041096,7]
[322113478,1712793048915,-160.0,0.00041158,22]
[322113479,1712793048924,-160.0,0.00041418,23]
[322113480,1712793048933,-1858.233668,0.00041553,120]
[322113481,1712793048943,-160.0,0.00041679,24]
[322113482,1712793048952,-160.0,0.00041939,25]
[322113483,1712793048961,-443.3820351,0.00042,120]
[322113484,1712793048970,-160.0,0.000422,26]
[322113485,1712793048979,-1115.1569878,0.000424,120]
[322113486,1712793048989,-160.0,0.0004246,27]
[322113487,1712793048998,-160.0,0.00042721,28]
[322113488,1712793049007,-1097.0,0.00042817,3]
[322113489,1712793049016,-160.0,0.00042981,29]
[322113490,1712793049026,-160.0,0.00043242,30]
[322113491,1712793049035,-2016.92976428,0.0004335,2]
[322113492,1712793049045,-160.0,0.00043502,31]
[322113493,1712793049054,-160.0,0.00043763,32]
[322113494,1712793049064,-500.0,0.00043835,120]
[322113495,1712793049073,-500.0,0.00043835,120]
[322113496,1712793049082,-500.0,0.00043835,120]
[322113497,1712793049091,-500.0,0.00043835,120]
[322113498,1712793049100,-500.0,0.00043835,120]
[322113499,1712793049110,-404.38,0.00043835,120]
[322113500,1712793049119,-160.0,0.00044023,33]
[322113501,1712793049128,-160.0,0.00044284,34]
[322113502,1712793049137,-208.66901118,0.00044284,5]
[322113503,1712793049146,-3091.76678074,0.000445,30]
[322113504,1712793049156,-708.0,0.0004468,35]
[322113505,1712793049165,-708.0,0.0004469,35]
[322113506,1712793049177,-708.0,0.000447,35]
[322113507,1712793049187,-158.917264,0.00044701,2]
[322113508,1712793049196,-306.168667,0.00044701,2]
[322113509,1712793049205,-325.971851,0.00044701,2]
[322113510,1712793049215,-8516.28804601,0.00045,120]
[322113511,1712793049224,-5865.81374509,0.00045,30]
[322113512,1712793049233,-160.29720662,0.00045,30]
[322113513,1712793049242,-42102.68530563,0.00045,30]
[322113514,1712793049298,-668.7260133,0.00045,30]
[322113535,1712793930152,-158.917264,0.00027397,2]
[322113536,1712793930172,-57.8638467,0.00032876,5]
[322113541,1712794035102,-400.0,0.00031889,2]
[322113542,1712794035124,-993.86,0.0003189,2]
[322113543,1712794038111,-886.268149,0.0003189,2]
[322113545,1712794044142,-381.43284223,0.00031888,4]
[322113551,1712794207147,621.94497481,0.00028061,2]
[322113552,1712794208258,620.09724874,0.00029465,2]
[322113553,1712794229737,3576.09397972,0.00028581,2]
[322113554,1712794229757,4805.859362,0.00028581,2]
[322113635,1712794235946,162.595641,0.00027397,2]
[322113950,1712794243221,-21472.71451622,0.00028581,2]
[322113951,1712794243230,-246.97600435,0.00030838,5]
[322113952,1712794243240,-1312.66049814,0.00030929,4]
[322113953,1712794243249,-400.0,0.0003093,2]
[322113954,1712794243258,-300.0,0.0003093,2]
[322113955,1712794243267,-620.00486244,0.00030938,2]
[322113956,1712794243277,-10983.5835712,0.00030938,2]
[322113957,1712794243286,-291.3604541,0.00031729,2]
[322113958,1712794243295,-478.43742362,0.00031887,2]
[322113959,1712794243304,-275.95760327,0.00031888,4]
[322113960,1712794243313,-155.10304485,0.00031888,4]
[322113961,1712794243323,-604.27444282,0.00031888,4]
[322113963,1712794243337,-1307.84743807,0.00031888,4]
[322113964,1712794243348,-201.13328177,0.00031888,4]
[322113965,1712794243357,-473.2366857,0.00031888,4]
[322113966,1712794243367,-694.67753415,0.00031888,4]
[322113967,1712794243376,-5544.68785386,0.00031888,4]
[322113968,1712794243385,-442.37211124,0.00031888,4]
[322113969,1712794243394,-156.08474154,0.00031888,4]
[322113970,1712794243403,-155.3597361,0.00031888,4]
[322113971,1712794243413,-155.77365779,0.00031888,4]
[322113972,1712794243423,-2121.71958913,0.00031888,4]
[322113973,1712794243433,-277.12178816,0.00031888,4]
[322113974,1712794243443,-172.29467282,0.00031888,4]
[322113975,1712794243453,-282.39298336,0.00031888,4]
[322113976,1712794243464,-302.03683113,0.00031888,4]
[322113977,1712794243475,-187.14683002,0.00031888,4]
[322113978,1712794243485,-322.6187509,0.00031888,4]
[322113979,1712794243495,-1963.97984376,0.00031888,4]
[322113980,1712794243507,-185.63459732,0.00031888,4]
[322113981,1712794243518,-303.32143399,0.00031888,4]
[322113982,1712794243528,-1919.21518065,0.00031888,4]
[322113983,1712794243538,-407.79245075,0.00031888,4]
[322113984,1712794243547,-243.98537927,0.00031888,4]
[322113985,1712794243556,-155.18570602,0.00031888,4]
[322113986,1712794243578,-252.81030305,0.00031888,4]
[322113987,1712794243590,-4575.17724046,0.00031888,4]
[322113988,1712794243599,-5444.08292654,0.00031889,4]
[322113989,1712794243609,-1352.6362,0.00032116,30]
[322113990,1712794243620,-620.00024312,0.00032485,2]
[322113991,1712794243629,-500.0,0.00032876,5]
[322113992,1712794243639,-13819.05843359,0.00032876,30]
[322113993,1712794243649,-1509.28309656,0.00032876,4]
[322113994,1712794243659,-220.22760662,0.00032876,4]
[322113995,1712794243669,-500.0,0.00032876,5]
[322113996,1712794243679,-500.0,0.00032876,5]
[322113997,1712794243688,-500.0,0.00032876,5]
[322113998,1712794243698,-500.0,0.0003315,5]
[322113999,1712794243707,-500.0,0.0003315,5]
[322114000,1712794243717,-500.0,0.0003315,5]
[322114001,1712794243726,-500.0,0.0003315,5]
[322114002,1712794243737,-447.4948988,0.00033424,5]
[322114003,1712794243747,-500.0,0.00033424,5]
[322114004,1712794243757,-362.24,0.00033424,5]
[322114005,1712794243767,-500.0,0.00033698,5]
[322114006,1712794243777,-500.0,0.00033972,5]
[322114007,1712794243787,-300.0,0.00034,17]
[322114008,1712794243798,-560.0,0.00034023,2]
[322114009,1712794243808,-545.6261533,0.00034246,5]
[322114010,1712794243819,-158.917264,0.00034703,2]
[322114011,1712794243831,-668.97750328,0.00035,4]
[322114012,1712794243841,-596.25390228,0.00035,2]
[322114013,1712794243851,-300.0,0.000355,18]
[322114014,1712794243861,-156.74777884,0.00035579,4]
[322114015,1712794243870,-1182.699116,0.00035616,120]
[322114016,1712794243880,-418.7443675,0.00036386,2]
[322114017,1712794243890,-319.83345775,0.000369,30]
[322114018,1712794243899,-3624.87863762,0.00037,2]
[322114019,1712794243910,-783.0,0.00037426,2]
[322114020,1712794243921,-160.36816041,0.000379,2]
[322114021,1712794243932,-3454.4006838,0.00038233,2]
[322114022,1712794243942,-201.06149002,0.0004,2]
[322114023,1712794243951,-150.0,0.00041,30]
[322114024,1712794243961,-1061.2282329,0.00041,4]
[322114025,1712794243972,-218.40515386,0.00041096,7]
[322114026,1712794243981,-567.63181069,0.00041168,3]
[322114061,1712794791181,156.53326933,0.00023705,2]
[322114074,1712794904260,153.21588608,0.0002515,2]
[322114075,1712794948228,220.22760662,0.0002515,2]
[322114077,1712794964211,220.22760662,0.0002515,2]
[322114078,1712794984209,295.8912181,0.0002515,2]
[322114080,1712795039153,24900.0,0.00025155,2]
[322114081,1712795088090,11343.4921802,0.00025155,2]
[322114082,1712795147766,1406.94252251,0.00023055,2]
[322114085,1712795345178,-925.12169132,0.00025223,2]
[322114086,1712795345200,-364.74168,0.00025224,2]
[322114087,1712795345220,-250.0,0.00025226,2]
[322114088,1712795345241,-2257.1207944,0.00025302,2]
[322114089,1712795345263,-160.86393204,0.00025397,2]
[322114090,1712795345285,-260.11576276,0.000254,2]
[322114091,1712795345308,-300.0,0.00025494,2]
[322114092,1712795345328,-300.0,0.00025494,2]